Cogmind - Beta 15 @@@ ROGUE MODE // 2025.06.24 @ 13:54:29 Player: xgames Result: Destroyed by G-34 Mercenary with Small Laser Performance ------------- Evolutions (1) 500 Regions Visited (2) 400 Robots Destroyed (15) 75 Value Destroyed (365) 365 Prototype IDs (2) 40 Alien Tech Used (0) 0 Bonus (0) 0 TOTAL SCORE: 1380 Bonus ------- None Cogmind --------- Core Integrity 0/400 Matter 265/300 Energy 100/100 System Corruption 0% Temperature Cool (6) Movement Treading (240) Ox1 Location -9/Materials Parts ------- > --- POWER (1) -------- (None) > --- PROPULSION (2) --- Light Treads Light Treads > --- UTILITY (3) ------ Small Storage Unit High-capacity Storage Unit Structural Scanner > --- WEAPON (3) ------- Heavy Hammer > --- INVENTORY (20) --- Light Ion Engine Wheel Compact Wheel Compact Wheel Heat Sink Shield Generator Tractor Beam Peak State ------------ > --- POWER ------------ Ion Engine > --- PROPULSION ------- Aluminum Leg Aluminum Leg > --- UTILITY ---------- Small Storage Unit High-capacity Storage Unit Seismic Detector > --- WEAPON ----------- Assault Rifle Grenade Launcher Heavy Hammer > --- INVENTORY -------- Light Ion Engine Light Treads Light Treads Wheel [Rating: 10] Favorites ----------- Power Ion Engine Engine Ion Engine Propulsion Aluminum Leg Treads Light Treads Leg Aluminum Leg Utility Small Storage Unit Device Seismic Detector Storage Small Storage Unit Protection Light Armor Plating Weapon Heavy Hammer Ballistic Gun Assault Rifle Launcher Grenade Launcher Impact Weapon Heavy Hammer Build | -11 -10 -9 ------- Run | Yrd Mat Mat Slots Evolved 2 | . . 2 Power . | . . . Propulsion . | . . . Utility 1 | . . 1 Weapon 1 | . . 1 Parts Attached 18 | 7 4 7 Power 3 | 1 1 1 Engine 3 | 1 1 1 Core . | . . . Reactor . | . . . Propulsion 4 | 2 . 2 Treads 2 | . . 2 Leg 2 | 2 . . Wheel . | . . . Hover . | . . . Flight . | . . . Utility 6 | 2 2 2 Device 3 | 1 1 1 Storage 2 | 1 1 . Processor . | . . . Hackware . | . . . Protection 1 | . . 1 Artifact . | . . . Weapon 5 | 2 1 2 Energy Gun . | . . . Energy Cannon . | . . . Ballistic Gun 2 | 2 . . Ballistic Cannon . | . . . Launcher 1 | . 1 . Special Weapon . | . . . Impact Weapon 2 | . . 2 Slashing Weapon . | . . . Piercing Weapon . | . . . Special Melee Weapon . | . . . Unidentified Prototypes . | . . . Parts Lost 12 | . 3 9 Power 3 | . 1 2 Propulsion 2 | . . 2 Utility 3 | . 1 2 Weapon 4 | . 1 3 Highest Loss Streak 3 | . 3 2 To Critical Strikes . | . . . Average Backups 6 | 4 7 7 Power 1 | . 1 1 Propulsion 3 | 2 3 3 Utility 1 | . 1 1 Weapon . | . 1 . Tool/Special . | . . . Unused Backups 9 | . 1 8 Power 1 | . . 1 Propulsion 4 | . . 4 Utility 3 | . . 3 Weapon 1 | . 1 . Tool/Special . | . . . Average Slot Usage (%) 81 | . 100 76 Engine 9 | . 14 8 Treads 1 | . . 1 Leg 16 | . 28 13 Device 10 | . 14 9 Storage 18 | . 14 19 Protection 1 | . . 2 Ballistic Gun 9 | . 25 5 Launcher 3 | . 2 3 Impact Weapon 10 | . . 13 Peak Build Rating 10 | 9 9 10 Average Rating 7 | 5 8 8 On Entrance 5 | . 9 7 Naked Turns . | . . . Heaviest Build 59 | 12 51 59 Greatest Support 40 | 20 20 40 Greatest Overweight (x) 18 | 2 2 18 Average Overweight (x) 1 | . . 3 Largest Inventory Capacity 20 | 8 20 20 Average Capacity 16 | 7 10 20 Most Carried 12 | 7 8 12 Average Carried 6 | 5 7 7 Final Capacity 20 | 8 20 20 Final Carried 7 | 7 5 7 Class Distribution -------------------- 100% | Mutant Dominant Class ---------------- Mutant | -10/Materials Mutant | -9/Materials Resources | -11 -10 -9 ----------- Run | Yrd Mat Mat Matter Collected 481 | 282 . 199 Remotely . | . . . Salvage Created 459 | 107 . 352 Parts 18 | 3 . 15 Haulers Intercepted . | . . . Recyclers Shooed 1 | 1 . . Parts Field Recycled . | . . . Retrieved Matter . | . . . Parts Self-Destructed . | . . . Prevented . | . . . Kills | -11 -10 -9 ------- Run | Yrd Mat Mat Combat Hostiles Destroyed 10 | . . 10 Melee 3 | . . 3 Guns 1 | . . 1 AOE 3 | . . 3 Classes Destroyed 7 | 2 . 5 Builder 1 | . . 1 Tunneler 2 | 1 . 1 Recycler 2 | 1 . 1 Swarmer 3 | . . 3 Grunt 5 | . . 5 Brawler 1 | . . 1 Sentry 1 | . . 1 Best Kill Streak 3 | 1 . 3 Combat Bots Only 3 | . . 3 Max Kills in Single Turn 2 | 1 . 2 Gunslinging . | . . . Exploded 2 | . . 2 Melee 1 | . . 1 Uniques/NPCs Destroyed . | . . . Combat | -11 -10 -9 -------- Run | Yrd Mat Mat Hostile Shots Fired 162 | . . 162 Missed 39 | . . 39 Hits 123 | . . 123 Projectile 123 | . . 123 Critical Strikes 1 | . . 1 Damage Taken 1533 | . 175 1358 Core 401 | . . 401 Absorbed by Shields . | . . . Core Remaining (%) 100 | 100 100 . Volleys Fired 20 | 7 . 13 Largest 2 | 2 . 2 Hottest 50 | 40 . 50 Shots Fired 36 | 14 1 21 Gun 28 | 14 1 13 Cannon . | . . . Launcher 8 | . . 8 Special . | . . . Kinetic 28 | 14 1 13 Thermal . | . . . Explosive 8 | . . 8 Electromagnetic . | . . . Robot Hit Streak 10 | 5 . 10 Robot Miss Streak 2 | 2 . 2 Penetration Max . | . . . Secondary Targets . | . . . Shots Hit Robots 43 | 9 . 34 Core Hits 15 | 3 . 12 Critical Kills 1 | . . 1 Critical Parts Destroyed 2 | . . 2 Critical Strikes 3 | . . 3 Destroy 1 | . . 1 Smash 2 | . . 2 Melee Attacks 26 | . . 26 Impact 26 | . . 26 Slashing . | . . . Piercing . | . . . Sneak Attacks 3 | . . 3 Combat Hostiles . | . . . Follow-up Attacks . | . . . Damage Inflicted 1472 | 98 . 1374 Guns 226 | 94 . 132 Cannons . | . . . Explosions 386 | . . 386 Melee 852 | . . 852 Ramming 8 | 4 . 4 Kinetic 226 | 94 . 132 Thermal . | . . . Explosive 386 | . . 386 Electromagnetic . | . . . Impact 852 | . . 852 Slashing . | . . . Piercing . | . . . Highest Corruption 1 | . 1 . Average Corruption 1 | . 1 . Corruption Purged . | . . . Corruption Blocked . | . . . Effects 2 | . 2 . Energy Discharges 1 | . 1 . Misfires 1 | . 1 . Overload Shots . | . . . Overflow Damage 351 | . 55 296 Projectiles 36 | . . 36 Explosions 55 | . 55 . Melee 260 | . . 260 Knockbacks 4 | . . 4 Impact 4 | . . 4 Kinetic . | . . . Secondary . | . . . Self-Inflicted Damage 245 | . 175 70 Shots 6 | . 2 4 Rammed 2 | 1 . 1 Targets Rammed 6 | 4 . 2 Kicked 4 | 3 . 1 Crushed . | . . . Highest Temperature 7 | . . 7 Average Temperature 3 | . . 3 Received Heat Transfer 531 | . . 531 Siege Activations . | . . . Martial Activations . | . . . Shielding Activations . | . . . Robots Disrupted . | . . . Combat Hostiles . | . . . Robots Corrupted 4 | . . 4 Combat Hostiles 3 | . . 3 Parts Fried 8 | . . 8 Impact Corruptions 16 | . . 16 Robots Melted . | . . . Combat Hostiles . | . . . Parts Melted . | . . . Heat Transferred . | . . . Parts Sabotaged . | . . . Parts Stolen . | . . . Parts Stripped . | . . . Power Chain Reactions . | . . . Alert | -11 -10 -9 ------- Run | Yrd Mat Mat Maximum Alert Level 1 | . . 1 Low Security (%) 99 | 100 100 99 Level 1 . | . . . Level 2 . | . . . Level 3 . | . . . Level 4 . | . . . Level 5 . | . . . High Security . | . . . Max Security . | . . . Peak Influence 203 | 5 35 203 Initial 5 | . . 5 Average 58 | . 4 87 Influence Increases 523 | 10 70 443 Destroy 0b10 Robot/C 200 | . . 200 Destroy 0b10 Robot/NC 25 | 10 . 15 Destroy Leader 50 | . . 50 Successful Hack 5 | . 5 . Disable Machine 60 | . 30 30 Destroy Structure 78 | . 35 43 Lose Combat Pursuer 105 | . . 105 Influence Decreases 436 | 10 55 371 Entered New Map 10 | . . 10 Time Decay 306 | 10 25 271 Lost Part 120 | . 30 90 Squads Dispatched 2 | . 1 1 Investigation 1 | . 1 . Extermination . | . . . Reinforcement 1 | . . 1 Assault . | . . . Garrison . | . . . Intercept . | . . . Searches Triggered . | . . . Construction Impeded . | . . . Haulers Reinforced . | . . . Active Scanning Responses . | . . . Cargo Convoy Interrupts . | . . . Stealth | -11 -10 -9 --------- Run | Yrd Mat Mat Distress Signals 1 | . . 1 Communications Jammed . | . . . Distress Signals . | . . . Times Spotted 24 | . 1 23 Peak Tracking Total 5 | . 1 5 Tactical Retreats 4 | . . 4 Traps | -11 -10 -9 ------- Run | Yrd Mat Mat Traps Triggered . | . . . Indirectly . | . . . Trap Hack Attempts . | . . . Triggered . | . . . Disarmed 4 | . . 4 Reprogrammed . | . . . Reused . | . . . Traps Extracted . | . . . Installed . | . . . Triggered . | . . . Machines | -11 -10 -9 ---------- Run | Yrd Mat Mat Machines Disabled 4 | . 2 2 Max in Single Turn 2 | . 2 2 Machines Repaired . | . . . Machines Dismantled . | . . . Machines Sabotaged . | . . . Overloaded Fab Kills . | . . . Hacking | -11 -10 -9 --------- Run | Yrd Mat Mat Machines Accessed 4 | . 2 2 Terminals 4 | . 2 2 Fabricators . | . . . Repair Stations . | . . . Recycling Units . | . . . Scanalyzers . | . . . Garrison Access . | . . . Total Hacks 10 | . 6 4 Successful 4 | . 2 2 Failed 6 | . 4 2 Catastrophic 1 | . 1 . Database Lockouts . | . . . Manual 2 | . 2 . Terminals 10 | . 6 4 Fabricators . | . . . Repair Stations . | . . . Recycling Units . | . . . Scanalyzers . | . . . Garrison Access . | . . . Terminal Hacks 4 | . 2 2 Prototype ID Bank 1 | . 1 . Alert Level 1 | . . 1 Locate Traps 1 | . 1 . Disarm Traps 1 | . . 1 Fabricator Hacks . | . . . Repair Station Hacks . | . . . Recycling Unit Hacks . | . . . Scanalyzer . | . . . Garrison Access Hacks . | . . . Unauthorized Hacks . | . . . Terminals . | . . . Fabricators . | . . . Repair Stations . | . . . Recycling Units . | . . . Scanalyzers . | . . . Garrison Access . | . . . Data Cores Recovered . | . . . Used . | . . . Hacking Detections 4 | . 2 2 Full Trace Events 2 | . 2 . Feedback Events 1 | . 1 . Corruption 1 | . 1 . Feedback Blocked . | . . . Robot Schematics Acquired . | . . . Robots Built . | . . . Authchips . | . . . Time . | . . . Total Robot Build Rating . | . . . Part Schematics Acquired . | . . . Parts Built . | . . . Authchips . | . . . Time . | . . . Total Part Build Rating . | . . . Parts Repaired . | . . . Time . | . . . Parts Recycled . | . . . Recycled Matter . | . . . Retrieved Matter . | . . . Retrieved Components . | . . . Parts Scanalyzed . | . . . Part Schematics Acquired . | . . . Parts Damaged . | . . . Bothacking | -11 -10 -9 ------------ Run | Yrd Mat Mat Used RIF Installer . | . . . Robots Hacked . | . . . Non-combat . | . . . Combat . | . . . Robot Hacks Applied . | . . . Relay Couplers Released . | . . . Fabnet Peak Effective % . | . . . Robots Rewired . | . . . Allies Hacked . | . . . Hacks Repelled . | . . . Allies | -11 -10 -9 -------- Run | Yrd Mat Mat Total Allies . | . . . Largest Group . | . . . Highest-Rated Group . | . . . Highest-Rated Ally . | . . . Total Orders . | . . . Ally Attacks . | . . . Total Damage . | . . . Kills . | . . . Allies Corrupted . | . . . Allies Melted . | . . . Intel | -11 -10 -9 ------- Run | Yrd Mat Mat Active Infowar (turns) 844 | 41 182 621 Terrain 196 | 41 155 . Structural 65 | . . 65 Seismic 583 | . 27 556 Robot Analysis Total . | . . . Derelict Logs Recovered . | . . . Drone Launches . | . . . Drone Recoveries . | . . . Exploration | -11 -10 -9 ------------- Run | Yrd Mat Mat Turns Passed 1087 | 177 185 725 Spaces Moved 419 | 111 133 175 Core 35 | 13 . 22 Treads 20 | . . 20 Legs 364 | 98 133 133 Wheels . | . . . Hover . | . . . Flight . | . . . Fastest Speed 50 | 50 120 240 Average Speed 214 | 119 135 334 Slowest Speed 950 | 150 260 950 Overloaded Moves . | . . . Propulsion Burnouts . | . . . Robots Hopped . | . . . Potential Cave-ins . | . . . Cave-ins Triggered . | . . . Exploration Rate (%) 19 | 6 28 23 Regions Visited 2 Branch Regions . Pre-discovered Areas . | . . . Known Exits Taken . | . . . Unknown Exits Taken 2 | 1 1 . Scrap Searched . | . . . Spaces Dug . | . . . Terrain Destroyed 102 | . 38 64 Melee . | . . . Projectile . | . . . AOE 102 | . 38 64 Terrain Rammed . | . . . Walls Destroyed . | . . . Machines Disabled . | . . . Actions | -11 -10 -9 --------- Run | Yrd Mat Mat Total 521 | 142 139 240 Wait . | . . . Move 417 | 110 132 175 Hop . | . . . Pick Up 27 | 14 2 11 Fast Attach . | . . . Attach 19 | 7 3 9 Detach 1 | . . 1 Swap 3 | . 1 2 Drop 2 | . 1 1 Fire 20 | 7 . 13 Melee 26 | . . 26 Ram 2 | 1 . 1 Kick 4 | 3 . 1 Crush . | . . . Escape Stasis . | . . . Rewire . | . . . Trap . | . . . Miscellaneous . | . . . Route ------- -11/Scrapyard -10/Materials -9/Materials History --------- Turn | Location | Event 16 | -11/Scrapyard | Discovered new exit (range 16) 178 | -11/Scrapyard | Entered Materials 255 | -10/Materials | Discovered new exit (range 15) 312 | -10/Materials | Build established: Mutant 363 | -10/Materials | Entered another Materials area 363 | -9/Materials | Evolved 2 slots: Utility x1, Weapon x1 364 | -9/Materials | Lost 3 parts (1p1u1w) 867 | -9/Materials | Core integrity fell below 50% 912 | -9/Materials | Core integrity fell below 20% 1088 | -9/Materials | Destroyed by G-34 Mercenary with Small Laser Last Messages --------------- 00927_ G-34 Mercenary destroyed. 00946_ Acquired Corrupted Aluminum Leg. 01019_ Acquired Shield Generator. 01020_ Dropped Corrupted Aluminum Leg. 01038_ C-30 ARC bursts open, deploying its payload. 01038_ G-47 Trooper unfolds itself. 01038_ G-34 Mercenary unfolds itself. 01053_ Destroyed Lgt. Nuclear Core. 01053_ G-47 Trooper system corrupted by crushing effect. 01053_ G-47 Trooper knocked back. 01054_ G-47 Trooper system terminally corrupted. 01054_ Imp. Heat Sink fried. 01070_ Lgt. Ion Engine destroyed. 01078_ Destroyed Heat Sink. 01078_ G-34 Mercenary system corrupted by crushing effect. 01078_ G-34 Mercenary knocked back. 01083_ Destroyed Sml. Laser. 01083_ G-34 Mercenary system corrupted by crushing effect. 01084_ G-34 Mercenary system terminally corrupted. 01084_ Aluminum Leg fried. Map ----- +----------------------------------------------------+ | ?????????????????????????????????????????????????? | | ?????????????????????????????????????????????????? | | ?????????????????????????????????????????????????? | | ?????????????????????????????????????????????????? | | ?????????????????????????????????????????????????? | | ?????????????????????????????????????????????????? | | ????????????????????????????????????????????????## | | ????????????????????????????????????????????????# | | ???????????????????????????????????????????####?# | | ???????????????????????????????????????????? # | | ??????????????????????????????? ????????????? # | | ??????????????????????????? ? ???????????????? + | | ?????????????????????????? ?????????????????# | | ?????????????????????????? ##?????????????????# | | ?????????????????????????# ##?????????????????# | | ?????????????????????????+ ##?????????????????## | | ???????????????????????? # ######?????????????# | | ??????????????############% ######?????????????# | | ??????????????########### % # ???????#?????# | | ?????????????? # ??????????# ??# | | ?????????????????? T + ??????????# ## | | ???????????????? # ??????????# | | ????????????????######+## # ???# ## | | ????????????????## % #### ##########???# ?? | | ????????????????## [ ### [ ############# | | ????????????????## %/@g o | | ????????????????## ###%% g !!############# | | ????????????????## ### """ !!##??????????? | | ????????????????##= ### """ ##??????????? | | ????????????????########### """ ##??????????? | | ????????????????########### ##??????????? | | ?????????????????????????## #???????????? | | ?????????????????????????## #### #???????????? | | ????????????????????????? #### #???????????? | | ?????????????????????????###+###?# ^+???????????? | | ????????????????????????? ?# #???????????? | | ?????????????????????????????????# #???????????? | | ?????????????????????????????????# #???????????? | | ?????????????????????????????????# #???????????? | | ????????????????????????????????? #???????????? | | ?????????????????????????????????? #???????????? | | ?????????????????????????????????? ????????????? | | ?????????????????????????????????????????????????? | | ?????????????????????????????????????????????????? | | ?????????????????????????????????????????????????? | | ?????????????????????????????????????????????????? | | ?????????????????????????????????????????????????? | | ?????????????????????????????????????????????????? | | ?????????????????????????????????????????????????? | | ?????????????????????????????????????????????????? | +----------------------------------------------------+ Best States ------------- Heat Dissipation 28 Energy Generation 10 Energy Capacity 250 Matter Stores 300 Matter Capacity 300 Sight Range 16 Terrain Scan Range 16 Terrain Scan Density 10 Armor Coverage 150 Evasion (%) 55 Recoil Reduction 2 Item Schematics ----------------- None Robot Schematics ------------------ None Fabricated ------------ Nothing Repaired ---------- Nothing Alien Tech Used ----------------- None Achievements -------------- None Challenges ------------ None Game ------ Seed BattleAerolevProcessor Manual? 0 Play Time 00:09:03 Cumulative 5.4 hours Start 2025.06.24 @ 13:45:30 End 2025.06.24 @ 13:54:29 Sessions 1 Manual Loads 0 Difficulty Rogue Special Mode None Game No. 13 Rogue 13 Adventurer 0 Explorer 0 Win Type - Total 0 Types 0/0/0/0/0/0/0/0/0/0 Lore% 5 Gallery% 9 Achievement% 12 Wizard Run 0 Options --------- Layout 1 ASCII 0 Keyboard 0 Movement Numpad Keybinds 0 Fullscreen 1 Font 24/Smallcaps Map View 76x35 Zoom Use 0% Tactical HUD 1 Map Filters NONE Filters NONE Steam 1 RUN: 01f64bf6-e800-4ee4-9bf2-bec7e3791323